[Event "Early-Titled-Tuesday-Blitz-April-23-2024"]
[Site "Chess.com"]
[Date "2024.04.23"]
[Round "6"]
[White "yobdc"]
[Black "Abund"]
[Result "0-1"]
[WhiteElo "2614"]
[BlackElo "2808"]
[TimeControl "180+1"]
[EndTime "9:11:05 PDT"]
[Termination "Abund won on time"]

1. d4 {[%clk 0:03:00.9]} 1... d5 {[%clk 0:02:59.8]} 2. Bf4 {[%clk 0:02:59.7]}
2... Nf6 {[%clk 0:02:59.7]} 3. Nc3 {[%clk 0:03:00]} 3... c5 {[%clk 0:02:59.4]}
4. e3 {[%clk 0:02:58.3]} 4... cxd4 {[%clk 0:02:54.7]} 5. exd4 {[%clk 0:02:58.3]}
5... a6 {[%clk 0:02:55.2]} 6. Nf3 {[%clk 0:02:58.2]} 6... Nc6 {[%clk 0:02:55.7]}
7. Ne5 {[%clk 0:02:56.8]} 7... Bd7 {[%clk 0:02:54.7]} 8. Be2 {[%clk 0:02:51.1]}
8... e6 {[%clk 0:02:54.3]} 9. O-O {[%clk 0:02:47]} 9... Qb6 {[%clk 0:02:54.2]}
10. Nxc6 {[%clk 0:02:41.1]} 10... Bxc6 {[%clk 0:02:54.7]} 11. Rb1 {[%clk
0:02:36]} 11... Be7 {[%clk 0:02:50.5]} 12. a3 {[%clk 0:02:31.5]} 12... O-O
{[%clk 0:02:47.8]} 13. Na2 {[%clk 0:02:31.4]} 13... Bb5 {[%clk 0:02:44.4]} 14.
c3 {[%clk 0:02:24.1]} 14... Bxe2 {[%clk 0:02:34.7]} 15. Qxe2 {[%clk 0:02:25]}
15... Rac8 {[%clk 0:02:33.3]} 16. Nb4 {[%clk 0:02:20]} 16... Bd6 {[%clk
0:02:19.6]} 17. Bg5 {[%clk 0:02:06.8]} 17... Ne4 {[%clk 0:02:18.4]} 18. Be3
{[%clk 0:02:05]} 18... Bb8 {[%clk 0:02:14.5]} 19. f3 {[%clk 0:02:00.7]} 19...
Qc7 {[%clk 0:02:00.9]} 20. g3 {[%clk 0:01:49.6]} 20... Nd6 {[%clk 0:01:59.7]}
21. Bf4 {[%clk 0:01:46.6]} 21... Qd7 {[%clk 0:01:59.2]} 22. Nd3 {[%clk
0:01:44.6]} 22... Nc4 {[%clk 0:01:54.3]} 23. Bxb8 {[%clk 0:01:44.4]} 23... Rxb8
{[%clk 0:01:55]} 24. Rf2 {[%clk 0:01:37.3]} 24... b6 {[%clk 0:01:50.3]} 25. Re1
{[%clk 0:01:34.8]} 25... a5 {[%clk 0:01:50.7]} 26. f4 {[%clk 0:01:31.9]} 26...
Rbe8 {[%clk 0:01:49.4]} 27. Qg4 {[%clk 0:01:24.9]} 27... Nd6 {[%clk 0:01:47.9]}
28. Rfe2 {[%clk 0:00:46.5]} 28... Re7 {[%clk 0:01:43.5]} 29. Nf2 {[%clk
0:00:38.4]} 29... Rfe8 {[%clk 0:01:38.9]} 30. h4 {[%clk 0:00:37.7]} 30... f5
{[%clk 0:01:18.6]} 31. Qf3 {[%clk 0:00:37.5]} 31... Ne4 {[%clk 0:01:16.9]} 32.
Nd3 {[%clk 0:00:37.6]} 32... Qd8 {[%clk 0:01:11.5]} 33. Ne5 {[%clk 0:00:37]}
33... Rc7 {[%clk 0:01:12.1]} 34. h5 {[%clk 0:00:29.8]} 34... Qf6 {[%clk
0:01:06.4]} 35. Rg2 {[%clk 0:00:28.4]} 35... Kh8 {[%clk 0:00:54.2]} 36. g4
{[%clk 0:00:22.4]} 36... fxg4 {[%clk 0:00:52]} 37. Qxg4 {[%clk 0:00:17.3]} 37...
Rf8 {[%clk 0:00:42.9]} 38. Rf1 {[%clk 0:00:17.1]} 38... Qf5 {[%clk 0:00:39.1]}
39. h6 {[%clk 0:00:11.6]} 39... Qxg4 {[%clk 0:00:30]} 40. Rxg4 {[%clk
0:00:12.5]} 40... g6 {[%clk 0:00:29.3]} 41. Kg2 {[%clk 0:00:08.7]} 41... Rf5
{[%clk 0:00:28.1]} 42. Rh4 {[%clk 0:00:06.7]} 42... Kg8 {[%clk 0:00:25.2]} 43.
Rf3 {[%clk 0:00:06.4]} 43... Rf6 {[%clk 0:00:14.4]} 44. Kf1 {[%clk 0:00:06.3]}
44... Kf8 {[%clk 0:00:14.4]} 45. Ke2 {[%clk 0:00:05.9]} 45... Ke7 {[%clk
0:00:14.9]} 46. Kd3 {[%clk 0:00:05.1]} 46... Rc8 {[%clk 0:00:15.2]} 47. Kc2
{[%clk 0:00:04.9]} 47... Rcf8 {[%clk 0:00:14]} 48. Rhh3 {[%clk 0:00:02.5]} 48...
Kd6 {[%clk 0:00:11.7]} 49. a4 {[%clk 0:00:02]} 49... Rf5 {[%clk 0:00:08.6]} 50.
Kd3 {[%clk 0:00:01.7]} 50... R5f6 {[%clk 0:00:08.8]} 51. Kc2 {[%clk 0:00:02.1]}
51... Ke7 {[%clk 0:00:09.2]} 52. Kd3 {[%clk 0:00:02.6]} 52... Nd6 {[%clk
0:00:09.6]} 53. Kc2 {[%clk 0:00:02.9]} 53... Rc8 {[%clk 0:00:09.5]} 54. Ng4
{[%clk 0:00:02.8]} 54... Rf5 {[%clk 0:00:09.6]} 55. Ne5 {[%clk 0:00:03.1]} 55...
Ne4 {[%clk 0:00:10]} 56. Kd3 {[%clk 0:00:03.3]} 56... Rcf8 {[%clk 0:00:09.8]}
57. Kc2 {[%clk 0:00:03.4]} 57... Rc8 {[%clk 0:00:09.7]} 58. Kd3 {[%clk
0:00:03.8]} 58... g5 {[%clk 0:00:09.8]} 59. fxg5 {[%clk 0:00:03.9]} 59... Nf2+
{[%clk 0:00:10]} 60. Ke2 {[%clk 0:00:03.5]} 60... Nxh3 {[%clk 0:00:09.4]} 61.
Rxh3 {[%clk 0:00:03.1]} 61... Rxg5 {[%clk 0:00:09.9]} 62. Rf3 {[%clk 0:00:03.1]}
62... Rf8 {[%clk 0:00:09.5]} 63. Rh3 {[%clk 0:00:01]} 63... Rg2+ {[%clk
0:00:09.4]} 64. Kd3 {[%clk 0:00:01.4]} 64... Rf5 {[%clk 0:00:09.7]} 65. Nc6+
{[%clk 0:00:01.3]} 65... Kd6 {[%clk 0:00:09.9]} 66. Ne5 {[%clk 0:00:02.1]} 66...
Ke7 {[%clk 0:00:09.8]} 67. Nc6+ {[%clk 0:00:02.4]} 67... Kf6 {[%clk 0:00:10.3]}
68. Ne5 {[%clk 0:00:03.3]} 68... Rfg5 {[%clk 0:00:10.2]} 69. Nd7+ {[%clk
0:00:03.5]} 69... Ke7 {[%clk 0:00:10.3]} 70. Nxb6 {[%clk 0:00:04]} 70... R5g3+
{[%clk 0:00:10.4]} 71. Rxg3 {[%clk 0:00:04.5]} 71... Rxg3+ {[%clk 0:00:11.3]}
72. Kd2 {[%clk 0:00:04.6]} 72... Rh3 {[%clk 0:00:11.9]} 73. b4 {[%clk 0:00:05]}
73... axb4 {[%clk 0:00:09.8]} 74. cxb4 {[%clk 0:00:05.9]} 74... Rxh6 {[%clk
0:00:09.6]} 75. a5 {[%clk 0:00:06.3]} 75... Rh2+ {[%clk 0:00:09.7]} 76. Kc3
{[%clk 0:00:06]} 76... Ra2 {[%clk 0:00:09.8]} 77. Kb3 {[%clk 0:00:06.5]} 77...
Ra1 {[%clk 0:00:10.3]} 78. Na4 {[%clk 0:00:06.5]} 78... Kd6 {[%clk 0:00:10.1]}
79. a6 {[%clk 0:00:06.8]} 79... Kc7 {[%clk 0:00:10.4]} 80. Nc5 {[%clk
0:00:05.5]} 80... h5 {[%clk 0:00:09.8]} 81. Kb2 {[%clk 0:00:05.5]} 81... Re1
{[%clk 0:00:07.4]} 82. a7 {[%clk 0:00:05]} 82... Re2+ {[%clk 0:00:08]} 83. Kb3
{[%clk 0:00:04.9]} 83... Re3+ {[%clk 0:00:08.5]} 84. Kb2 {[%clk 0:00:05.2]}
84... Re2+ {[%clk 0:00:09]} 85. Kb3 {[%clk 0:00:05.6]} 85... Re3+ {[%clk
0:00:09.5]} 86. Ka4 {[%clk 0:00:05.8]} 86... Re1 {[%clk 0:00:09.7]} 87. Kb5
{[%clk 0:00:03.5]} 87... Ra1 {[%clk 0:00:09.8]} 88. Nxe6+ {[%clk 0:00:02.7]}
88... Kb7 {[%clk 0:00:09.6]} 89. Kc5 {[%clk 0:00:03.1]} 89... h4 {[%clk
0:00:09.4]} 90. Nf4 {[%clk 0:00:03]} 90... Rf1 {[%clk 0:00:09.6]} 91. Nh3 {[%clk
0:00:02.7]} 91... Rf3 {[%clk 0:00:10.1]} 92. Ng5 {[%clk 0:00:02.8]} 92... Rg3
{[%clk 0:00:10.6]} 93. Ne6 {[%clk 0:00:02.1]} 93... h3 {[%clk 0:00:11.1]} 94. b5
{[%clk 0:00:02.5]} 94... Kxa7 {[%clk 0:00:11.2]} 95. Kc6 {[%clk 0:00:01.9]}
95... h2 {[%clk 0:00:10.8]} 96. b6+ {[%clk 0:00:02.4]} 96... Kb8 {[%clk
0:00:11.3]} 97. Nc5 {[%clk 0:00:02.8]} 97... Rg6+ {[%clk 0:00:11.7]} 98. Kb5
{[%clk 0:00:02.2]} 98... h1=Q {[%clk 0:00:11.6]} 99. Nd7+ {[%clk 0:00:02.5]}
99... Kb7 {[%clk 0:00:11.5]} 100. Nc5+ {[%clk 0:00:02.8]} 100... Kc8 {[%clk
0:00:12.1]} 101. b7+ {[%clk 0:00:02.8]} 101... Kb8 {[%clk 0:00:12.4]} 0-1

[Event "Early-Titled-Tuesday-Blitz-April-23-2024"]
[Site "Chess.com"]
[Date "2024.04.23"]
[Round "7"]
[White "HATilay"]
[Black "giovannibrandao7"]
[Result "1-0"]
[WhiteElo "2645"]
[BlackElo "2340"]
[TimeControl "180+1"]
[EndTime "9:13:59 PDT"]
[Termination "HATilay won by resignation"]

1. e4 {[%clk 0:03:00.9]} 1... c5 {[%clk 0:03:00.4]} 2. Nf3 {[%clk 0:02:58.9]}
2... Nc6 {[%clk 0:03:00]} 3. Bb5 {[%clk 0:02:58.6]} 3... g6 {[%clk 0:02:59.6]}
4. Bxc6 {[%clk 0:02:58.4]} 4... bxc6 {[%clk 0:02:59.6]} 5. O-O {[%clk
0:02:58.7]} 5... Bg7 {[%clk 0:03:00.3]} 6. h3 {[%clk 0:02:59.3]} 6... e5 {[%clk
0:03:00.9]} 7. c3 {[%clk 0:02:53.9]} 7... Ne7 {[%clk 0:02:57.1]} 8. d4 {[%clk
0:02:54.3]} 8... cxd4 {[%clk 0:02:56.8]} 9. cxd4 {[%clk 0:02:55.1]} 9... exd4
{[%clk 0:02:56.3]} 10. Nxd4 {[%clk 0:02:56]} 10... O-O {[%clk 0:02:53.7]} 11.
Nc3 {[%clk 0:02:56.2]} 11... d5 {[%clk 0:02:52]} 12. Bg5 {[%clk 0:02:56.1]}
12... h6 {[%clk 0:02:31.3]} 13. Nxc6 {[%clk 0:02:55.3]} 1-0

[Event "Early-Titled-Tuesday-Blitz-April-23-2024"]
[Site "Chess.com"]
[Date "2024.04.23"]
[Round "7"]
[White "yonaltimur"]
[Black "sterpfi"]
[Result "0-1"]
[WhiteElo "2396"]
[BlackElo "2263"]
[TimeControl "180+1"]
[EndTime "9:14:53 PDT"]
[Termination "sterpfi won by resignation"]

1. e4 {[%clk 0:02:59.8]} 1... e6 {[%clk 0:03:00.1]} 2. d4 {[%clk 0:02:59.8]}
2... d5 {[%clk 0:03:00.8]} 3. Nc3 {[%clk 0:03:00.5]} 3... Bb4 {[%clk 0:02:58.6]}
4. e5 {[%clk 0:03:00.9]} 4... c5 {[%clk 0:02:59]} 5. a3 {[%clk 0:03:01.2]} 5...
Bxc3+ {[%clk 0:02:59.7]} 6. bxc3 {[%clk 0:03:02.1]} 6... Ne7 {[%clk 0:03:00.3]}
7. Qg4 {[%clk 0:03:02.5]} 7... O-O {[%clk 0:03:00.9]} 8. Bd3 {[%clk 0:03:00.5]}
8... f5 {[%clk 0:03:01.4]} 9. exf6 {[%clk 0:03:00.5]} 9... Rxf6 {[%clk 0:03:02]}
10. Bg5 {[%clk 0:02:59]} 10... Rf7 {[%clk 0:03:01.8]} 11. Qh4 {[%clk 0:02:59.2]}
11... h6 {[%clk 0:03:01.1]} 12. Be3 {[%clk 0:02:56.4]} 12... Qa5 {[%clk
0:02:51.9]} 13. Kd2 {[%clk 0:02:52.7]} 13... c4 {[%clk 0:02:42.6]} 14. Be2
{[%clk 0:02:51.9]} 14... Nf5 {[%clk 0:02:42.9]} 15. Qh5 {[%clk 0:02:48]} 15...
Nc6 {[%clk 0:02:35.2]} 16. Nf3 {[%clk 0:02:47.5]} 16... e5 {[%clk 0:02:31.3]}
17. dxe5 {[%clk 0:02:35.2]} 17... d4 {[%clk 0:02:30]} 18. Bxc4 {[%clk
0:02:31.8]} 18... Qxc3+ {[%clk 0:02:23.8]} 19. Ke2 {[%clk 0:02:29.7]} 19...
Qxc4+ {[%clk 0:02:22.4]} 0-1

[Event "Early-Titled-Tuesday-Blitz-April-23-2024"]
[Site "Chess.com"]
[Date "2024.04.23"]
[Round "7"]
[White "baki83"]
[Black "Timerkhanov"]
[Result "0-1"]
[WhiteElo "2884"]
[BlackElo "2653"]
[TimeControl "180+1"]
[EndTime "9:15:14 PDT"]
[Termination "Timerkhanov won by resignation"]

1. e4 {[%clk 0:03:00.9]} 1... c5 {[%clk 0:02:59.8]} 2. Nf3 {[%clk 0:03:00.8]}
2... a6 {[%clk 0:03:00.3]} 3. c3 {[%clk 0:03:00.7]} 3... d5 {[%clk 0:02:59.8]}
4. exd5 {[%clk 0:03:00.8]} 4... Qxd5 {[%clk 0:02:59.2]} 5. d4 {[%clk 0:03:01.6]}
5... Nf6 {[%clk 0:02:59]} 6. Be3 {[%clk 0:02:59.3]} 6... cxd4 {[%clk 0:02:58.7]}
7. cxd4 {[%clk 0:02:52.4]} 7... e6 {[%clk 0:02:59]} 8. Nc3 {[%clk 0:02:52.4]}
8... Qd6 {[%clk 0:02:59.3]} 9. Bd3 {[%clk 0:02:52.4]} 9... Nc6 {[%clk
0:02:57.9]} 10. Rc1 {[%clk 0:02:51.9]} 10... Be7 {[%clk 0:02:58.1]} 11. O-O
{[%clk 0:02:51.9]} 11... O-O {[%clk 0:02:57.7]} 12. Re1 {[%clk 0:02:52.3]} 12...
b5 {[%clk 0:02:34.8]} 13. Ne4 {[%clk 0:02:51.5]} 13... Nxe4 {[%clk 0:02:35.3]}
14. Bxe4 {[%clk 0:02:52]} 14... Bb7 {[%clk 0:02:35.9]} 15. Qc2 {[%clk
0:02:52.3]} 15... Nb4 {[%clk 0:02:36.2]} 16. Bxh7+ {[%clk 0:02:52.1]} 16... Kh8
{[%clk 0:02:36.9]} 17. Qb1 {[%clk 0:02:52.4]} 17... Bxf3 {[%clk 0:02:35.1]} 18.
a3 {[%clk 0:02:25.9]} 18... Nd5 {[%clk 0:02:28.6]} 19. gxf3 {[%clk 0:02:24.7]}
19... g6 {[%clk 0:02:28.7]} 20. Bh6 {[%clk 0:02:25]} 20... Kxh7 {[%clk
0:02:27.5]} 21. Bxf8 {[%clk 0:02:25.1]} 21... Rxf8 {[%clk 0:02:18.3]} 22. Qe4
{[%clk 0:02:24.9]} 22... Bf6 {[%clk 0:02:17.1]} 23. Rc5 {[%clk 0:02:23.4]} 23...
Kg7 {[%clk 0:02:16.2]} 24. Rec1 {[%clk 0:02:23.5]} 24... Rh8 {[%clk 0:02:16.5]}
0-1

[Event "Early-Titled-Tuesday-Blitz-April-23-2024"]
[Site "Chess.com"]
[Date "2024.04.23"]
[Round "7"]
[White "David_George21"]
[Black "ozates"]
[Result "0-1"]
[WhiteElo "2335"]
[BlackElo "2554"]
[TimeControl "180+1"]
[EndTime "9:15:31 PDT"]
[Termination "ozates won by resignation"]

1. e4 {[%clk 0:03:00.9]} 1... e5 {[%clk 0:02:58.2]} 2. Nf3 {[%clk 0:03:00]} 2...
Nc6 {[%clk 0:02:58.8]} 3. Bb5 {[%clk 0:03:00.5]} 3... a6 {[%clk 0:02:59.4]} 4.
Ba4 {[%clk 0:03:00.3]} 4... d6 {[%clk 0:02:59.7]} 5. d4 {[%clk 0:02:59.2]} 5...
exd4 {[%clk 0:02:57.1]} 6. Nxd4 {[%clk 0:03:00.1]} 6... Bd7 {[%clk 0:02:57.4]}
7. Bxc6 {[%clk 0:03:00.3]} 7... bxc6 {[%clk 0:02:57.6]} 8. O-O {[%clk
0:03:00.8]} 8... g6 {[%clk 0:02:57.8]} 9. Nc3 {[%clk 0:02:50.2]} 9... Bg7 {[%clk
0:02:57.8]} 10. Be3 {[%clk 0:02:44.3]} 10... Nf6 {[%clk 0:02:57.4]} 11. f3
{[%clk 0:02:44]} 11... O-O {[%clk 0:02:57.2]} 12. Qd2 {[%clk 0:02:43.5]} 12...
c5 {[%clk 0:02:54.5]} 13. Nb3 {[%clk 0:02:42.8]} 13... a5 {[%clk 0:02:53.5]} 14.
a4 {[%clk 0:02:42.4]} 14... Qb8 {[%clk 0:02:49.9]} 15. Rab1 {[%clk 0:02:26.4]}
15... Qb4 {[%clk 0:02:36.5]} 16. Bh6 {[%clk 0:02:17.3]} 16... Bxa4 {[%clk
0:02:29.9]} 17. Nxa4 {[%clk 0:01:50.3]} 17... Qxa4 {[%clk 0:02:30.8]} 18. Bxg7
{[%clk 0:01:50.2]} 18... Kxg7 {[%clk 0:02:30.7]} 19. Ra1 {[%clk 0:01:49.5]}
19... Qb4 {[%clk 0:02:22.5]} 20. Rxa5 {[%clk 0:01:46.2]} 20... Qxd2 {[%clk
0:02:20.9]} 0-1

[Event "Early-Titled-Tuesday-Blitz-April-23-2024"]
[Site "Chess.com"]
[Date "2024.04.23"]
[Round "7"]
[White "Sadykov_Ramil"]
[Black "praveenb2002"]
[Result "0-1"]
[WhiteElo "2627"]
[BlackElo "2882"]
[TimeControl "180+1"]
[EndTime "9:16:11 PDT"]
[Termination "praveenb2002 won by resignation"]

1. e4 {[%clk 0:02:16.5]} 1... c6 {[%clk 0:02:59.4]} 2. Nf3 {[%clk 0:02:14.8]}
2... d5 {[%clk 0:03:00.3]} 3. d3 {[%clk 0:02:15.4]} 3... Qc7 {[%clk 0:02:51.5]}
4. Qe2 {[%clk 0:02:09.5]} 4... dxe4 {[%clk 0:02:45.2]} 5. dxe4 {[%clk
0:02:09.3]} 5... e5 {[%clk 0:02:45.6]} 6. g3 {[%clk 0:02:07.1]} 6... Nf6 {[%clk
0:02:45.4]} 7. Bg2 {[%clk 0:02:07.1]} 7... Be7 {[%clk 0:02:38.9]} 8. O-O {[%clk
0:02:06.4]} 8... O-O {[%clk 0:02:39.5]} 9. a4 {[%clk 0:02:04.2]} 9... a5 {[%clk
0:02:39.7]} 10. h3 {[%clk 0:01:55.8]} 10... b6 {[%clk 0:02:38.9]} 11. Nbd2
{[%clk 0:01:41.4]} 11... Ba6 {[%clk 0:02:38.6]} 12. Nc4 {[%clk 0:01:41.4]} 12...
Nbd7 {[%clk 0:02:33.3]} 13. b3 {[%clk 0:01:35.3]} 13... b5 {[%clk 0:02:20.4]}
14. axb5 {[%clk 0:01:21.6]} 14... cxb5 {[%clk 0:02:21.3]} 15. Nxa5 {[%clk
0:01:13.7]} 15... b4 {[%clk 0:02:20.8]} 0-1

[Event "Early-Titled-Tuesday-Blitz-April-23-2024"]
[Site "Chess.com"]
[Date "2024.04.23"]
[Round "7"]
[White "jakopogi"]
[Black "jinbojinbo"]
[Result "1-0"]
[WhiteElo "2800"]
[BlackElo "2644"]
[TimeControl "180+1"]
[EndTime "9:16:29 PDT"]
[Termination "jakopogi won by resignation"]

1. d4 {[%clk 0:02:58.7]} 1... Nf6 {[%clk 0:02:59.6]} 2. c4 {[%clk 0:02:54.7]}
2... g6 {[%clk 0:02:59.8]} 3. Nc3 {[%clk 0:02:54.5]} 3... Bg7 {[%clk 0:02:59.6]}
4. e4 {[%clk 0:02:54.6]} 4... d6 {[%clk 0:02:59.2]} 5. Be3 {[%clk 0:02:55.2]}
5... O-O {[%clk 0:02:58.4]} 6. f3 {[%clk 0:02:51.4]} 6... c5 {[%clk 0:02:53.4]}
7. Nge2 {[%clk 0:02:44.6]} 7... cxd4 {[%clk 0:02:52.4]} 8. Nxd4 {[%clk
0:02:44.7]} 8... Bd7 {[%clk 0:02:48.6]} 9. Qd2 {[%clk 0:02:44.7]} 9... Nc6
{[%clk 0:02:48.3]} 10. Be2 {[%clk 0:02:43.3]} 10... Nxd4 {[%clk 0:02:43.3]} 11.
Bxd4 {[%clk 0:02:43.6]} 11... a5 {[%clk 0:02:39.1]} 12. O-O {[%clk 0:02:42.9]}
12... Bc6 {[%clk 0:02:35.5]} 13. Rfd1 {[%clk 0:02:43.1]} 13... Nd7 {[%clk
0:02:33.1]} 14. Bxg7 {[%clk 0:02:42.2]} 14... Kxg7 {[%clk 0:02:33.5]} 15. Kf2
{[%clk 0:02:25.7]} 15... a4 {[%clk 0:02:30.8]} 16. Qe3 {[%clk 0:02:21.3]} 16...
Qa5 {[%clk 0:02:19.8]} 17. Nd5 {[%clk 0:02:10]} 17... Bxd5 {[%clk 0:02:06.3]}
18. Rxd5 {[%clk 0:02:10.9]} 18... Qc7 {[%clk 0:02:03.8]} 19. h4 {[%clk
0:02:09.7]} 19... Ra5 {[%clk 0:01:42.8]} 20. Rad1 {[%clk 0:02:09.8]} 20... h5
{[%clk 0:01:08.3]} 21. Qc3+ {[%clk 0:02:09.5]} 1-0

[Event "Early-Titled-Tuesday-Blitz-April-23-2024"]
[Site "Chess.com"]
[Date "2024.04.23"]
[Round "7"]
[White "Kostukov_Alex"]
[Black "SharapovEvgeny"]
[Result "0-1"]
[WhiteElo "2340"]
[BlackElo "2621"]
[TimeControl "180+1"]
[EndTime "9:16:31 PDT"]
[Termination "SharapovEvgeny won by resignation"]

1. g3 {[%clk 0:02:53.4]} 1... c5 {[%clk 0:02:59.2]} 2. Bg2 {[%clk 0:02:53.5]}
2... Nc6 {[%clk 0:02:59.6]} 3. c4 {[%clk 0:02:54]} 3... g6 {[%clk 0:02:59.5]} 4.
Nf3 {[%clk 0:02:54]} 4... Bg7 {[%clk 0:02:59.9]} 5. O-O {[%clk 0:02:54.1]} 5...
e5 {[%clk 0:03:00.3]} 6. Nc3 {[%clk 0:02:53.4]} 6... d6 {[%clk 0:02:59.9]} 7. d3
{[%clk 0:02:53.7]} 7... Nge7 {[%clk 0:02:59.6]} 8. Bd2 {[%clk 0:02:54]} 8... O-O
{[%clk 0:02:59.2]} 9. Rb1 {[%clk 0:02:54.4]} 9... Rb8 {[%clk 0:02:59.2]} 10. a3
{[%clk 0:02:54.8]} 10... a5 {[%clk 0:02:59.3]} 11. Ne1 {[%clk 0:02:53.5]} 11...
Be6 {[%clk 0:02:58.9]} 12. Nd5 {[%clk 0:02:51.3]} 12... b5 {[%clk 0:02:58.8]}
13. Nxe7+ {[%clk 0:02:47.6]} 13... Nxe7 {[%clk 0:02:57.9]} 14. Qc2 {[%clk
0:02:24.3]} 14... b4 {[%clk 0:02:55.2]} 15. axb4 {[%clk 0:02:19.4]} 15... axb4
{[%clk 0:02:54.9]} 16. Ra1 {[%clk 0:02:15]} 16... Qd7 {[%clk 0:02:46.5]} 17. Qa4
{[%clk 0:01:57.3]} 17... Qxa4 {[%clk 0:02:38.4]} 18. Rxa4 {[%clk 0:01:55.5]}
18... d5 {[%clk 0:02:37.8]} 19. b3 {[%clk 0:01:46.9]} 19... dxc4 {[%clk
0:02:35.3]} 20. dxc4 {[%clk 0:01:45]} 20... Nf5 {[%clk 0:02:31.3]} 21. Nc2
{[%clk 0:01:32.7]} 21... Nd4 {[%clk 0:02:27.6]} 22. Nxd4 {[%clk 0:01:32]} 22...
exd4 {[%clk 0:02:27.7]} 23. Be4 {[%clk 0:01:18.4]} 23... f5 {[%clk 0:02:24.3]}
24. Bd3 {[%clk 0:01:17.7]} 24... Ra8 {[%clk 0:02:20.3]} 25. Rfa1 {[%clk
0:01:17]} 25... Rxa4 {[%clk 0:02:20.1]} 26. Rxa4 {[%clk 0:01:17.9]} 26... Rc8
{[%clk 0:02:12.7]} 27. Be3 {[%clk 0:01:11.3]} 27... dxe3 {[%clk 0:02:11.9]} 0-1

[Event "Early-Titled-Tuesday-Blitz-April-23-2024"]
[Site "Chess.com"]
[Date "2024.04.23"]
[Round "7"]
[White "RobertoJBM"]
[Black "Thunderbolt135"]
[Result "0-1"]
[WhiteElo "2832"]
[BlackElo "2682"]
[TimeControl "180+1"]
[EndTime "9:16:58 PDT"]
[Termination "Thunderbolt135 won by resignation"]

1. d4 {[%clk 0:03:00.9]} 1... Nf6 {[%clk 0:02:59.9]} 2. c4 {[%clk 0:03:00]} 2...
e6 {[%clk 0:03:00.5]} 3. Nf3 {[%clk 0:02:59.5]} 3... d5 {[%clk 0:03:01.1]} 4.
Nc3 {[%clk 0:02:59.1]} 4... c6 {[%clk 0:03:01.7]} 5. Bg5 {[%clk 0:02:58.4]} 5...
h6 {[%clk 0:03:01.6]} 6. Bh4 {[%clk 0:02:53.8]} 6... Be7 {[%clk 0:03:01.4]} 7.
e3 {[%clk 0:02:52.9]} 7... O-O {[%clk 0:02:59.6]} 8. Bd3 {[%clk 0:02:51.1]} 8...
Nbd7 {[%clk 0:02:59.5]} 9. O-O {[%clk 0:02:50.3]} 9... dxc4 {[%clk 0:02:54.9]}
10. Bxc4 {[%clk 0:02:50.1]} 10... b5 {[%clk 0:02:55.4]} 11. Be2 {[%clk 0:02:47]}
11... a6 {[%clk 0:02:53.8]} 12. a4 {[%clk 0:02:46.6]} 12... b4 {[%clk
0:02:51.4]} 13. Nb1 {[%clk 0:02:46.6]} 13... a5 {[%clk 0:02:47.2]} 14. Nbd2
{[%clk 0:02:45.4]} 14... c5 {[%clk 0:02:47.7]} 15. Nc4 {[%clk 0:02:38.3]} 15...
Bb7 {[%clk 0:02:45.1]} 16. Rc1 {[%clk 0:02:33.9]} 16... Ne4 {[%clk 0:02:26.5]}
17. Bxe7 {[%clk 0:02:32.9]} 17... Qxe7 {[%clk 0:02:27.4]} 18. Bd3 {[%clk
0:02:23.4]} 18... cxd4 {[%clk 0:02:21.6]} 19. exd4 {[%clk 0:02:20.7]} 19... Rfd8
{[%clk 0:02:20.2]} 20. Qe2 {[%clk 0:02:20.3]} 20... Ng5 {[%clk 0:02:08.3]} 21.
Nfe5 {[%clk 0:01:58.3]} 21... Nxe5 {[%clk 0:02:08.4]} 22. dxe5 {[%clk
0:01:52.8]} 22... Rd4 {[%clk 0:02:04.5]} 23. Nd6 {[%clk 0:01:45.1]} 23... Nh3+
{[%clk 0:02:02.4]} 24. Kh1 {[%clk 0:01:35.3]} 24... Bxg2+ {[%clk 0:02:02.7]} 25.
Kxg2 {[%clk 0:01:21.7]} 25... Nf4+ {[%clk 0:02:03.6]} 26. Kh1 {[%clk 0:01:17.3]}
26... Nxe2 {[%clk 0:02:03.8]} 27. Bxe2 {[%clk 0:01:17.7]} 27... Qg5 {[%clk
0:01:53.3]} 0-1

[Event "Early-Titled-Tuesday-Blitz-April-23-2024"]
[Site "Chess.com"]
[Date "2024.04.23"]
[Round "7"]
[White "KogotBobra17"]
[Black "klimkoj"]
[Result "1-0"]
[WhiteElo "2774"]
[BlackElo "2908"]
[TimeControl "180+1"]
[EndTime "9:17:26 PDT"]
[Termination "KogotBobra17 won by resignation"]

1. e4 {[%clk 0:03:00.9]} 1... e6 {[%clk 0:02:59.2]} 2. d4 {[%clk 0:03:01]} 2...
d5 {[%clk 0:03:00.1]} 3. e5 {[%clk 0:03:01.6]} 3... c5 {[%clk 0:02:54.4]} 4. c3
{[%clk 0:03:02.2]} 4... Nc6 {[%clk 0:02:55.3]} 5. Nf3 {[%clk 0:03:02.8]} 5... f6
{[%clk 0:02:48.8]} 6. Bd3 {[%clk 0:03:01.7]} 6... Bd7 {[%clk 0:02:37.9]} 7. O-O
{[%clk 0:03:00.3]} 7... Qb6 {[%clk 0:02:38.2]} 8. Na3 {[%clk 0:02:47]} 8... cxd4
{[%clk 0:01:57.5]} 9. cxd4 {[%clk 0:02:47.9]} 9... Nb4 {[%clk 0:01:52.3]} 10.
Be2 {[%clk 0:02:45.7]} 10... f5 {[%clk 0:01:46.9]} 11. Bd2 {[%clk 0:02:44.5]}
11... Nh6 {[%clk 0:01:46.6]} 12. Bxh6 {[%clk 0:02:43.8]} 12... gxh6 {[%clk
0:01:46.8]} 13. Nc2 {[%clk 0:02:16.1]} 13... Rg8 {[%clk 0:01:32.4]} 14. Nxb4
{[%clk 0:02:13.4]} 14... Qxb4 {[%clk 0:01:33.3]} 15. Rc1 {[%clk 0:02:13.2]}
15... Be7 {[%clk 0:01:15.1]} 16. Ne1 {[%clk 0:02:04]} 16... Qxb2 {[%clk
0:01:04.3]} 17. Bh5+ {[%clk 0:01:55.7]} 17... Kd8 {[%clk 0:01:02.9]} 18. Rb1
{[%clk 0:01:55.7]} 18... Qxa2 {[%clk 0:00:57.9]} 19. Rxb7 {[%clk 0:01:54.6]}
19... Qa6 {[%clk 0:00:51]} 20. Qb1 {[%clk 0:01:53.4]} 20... Bb5 {[%clk
0:00:48.8]} 21. Rxb5 {[%clk 0:01:50.3]} 21... Rc8 {[%clk 0:00:39.2]} 22. Nd3
{[%clk 0:01:48.1]} 22... Qa4 {[%clk 0:00:35.5]} 23. Nf4 {[%clk 0:01:45.1]} 1-0